[Event "Late-Titled-Tuesday-Blitz-April-30-2024"]
[Site "Chess.com"]
[Date "2024.04.30"]
[Round "4"]
[White "TigrVShlyape"]
[Black "LyonBeast"]
[Result "1/2-1/2"]
[WhiteElo "2932"]
[BlackElo "3116"]
[TimeControl "180+1"]
[EndTime "14:40:01 PDT"]
[Termination "Game drawn by agreement"]

1. d4 {[%clk 0:03:00.9]} 1... d5 {[%clk 0:02:58.2]} 2. Nf3 {[%clk 0:03:00.1]}
2... c6 {[%clk 0:02:56.1]} 3. Bf4 {[%clk 0:02:59.4]} 3... Bf5 {[%clk 0:02:53.4]}
4. e3 {[%clk 0:02:58.7]} 4... Qb6 {[%clk 0:02:48.2]} 5. Qc1 {[%clk 0:02:58.1]}
5... e6 {[%clk 0:02:47.8]} 6. c4 {[%clk 0:02:57.7]} 6... Nf6 {[%clk 0:02:48.3]}
7. Nc3 {[%clk 0:02:56.9]} 7... Nbd7 {[%clk 0:02:47.4]} 8. Be2 {[%clk 0:02:45.5]}
8... h6 {[%clk 0:02:46.2]} 9. O-O {[%clk 0:02:44.3]} 9... Be7 {[%clk 0:02:46.7]}
10. c5 {[%clk 0:02:40.4]} 10... Qd8 {[%clk 0:02:45.6]} 11. b4 {[%clk 0:02:37.6]}
11... Nh5 {[%clk 0:02:42.6]} 12. Be5 {[%clk 0:02:35.8]} 12... O-O {[%clk
0:02:31]} 13. h3 {[%clk 0:02:35.3]} 13... Nhf6 {[%clk 0:02:26.6]} 14. Bh2 {[%clk
0:02:34.9]} 14... Ne4 {[%clk 0:02:25.8]} 15. b5 {[%clk 0:02:19.4]} 15... Qa5
{[%clk 0:02:24.7]} 16. Nxe4 {[%clk 0:02:18.1]} 16... dxe4 {[%clk 0:02:20.8]} 17.
Nd2 {[%clk 0:02:03.8]} 17... cxb5 {[%clk 0:02:21.1]} 18. Qb2 {[%clk 0:01:52.5]}
18... e5 {[%clk 0:02:04.7]} 19. Bxb5 {[%clk 0:01:49.9]} 19... exd4 {[%clk
0:02:04.3]} 20. exd4 {[%clk 0:01:49.4]} 20... Qd8 {[%clk 0:01:49.8]} 21. c6
{[%clk 0:01:46.4]} 21... bxc6 {[%clk 0:01:48.5]} 22. Bxc6 {[%clk 0:01:46.7]}
22... Rc8 {[%clk 0:01:48.3]} 23. Bxe4 {[%clk 0:01:46.9]} 23... Bxe4 {[%clk
0:01:47.4]} 24. Nxe4 {[%clk 0:01:46.7]} 24... Nf6 {[%clk 0:01:48]} 25. Rfe1
{[%clk 0:01:43.8]} 25... Qd5 {[%clk 0:01:43.4]} 26. Nxf6+ {[%clk 0:01:41.4]}
26... Bxf6 {[%clk 0:01:44.3]} 27. Be5 {[%clk 0:01:41.4]} 27... Bd8 {[%clk
0:01:45]} 28. Qb3 {[%clk 0:01:40.1]} 28... Qxb3 {[%clk 0:01:43.4]} 29. axb3
{[%clk 0:01:39.9]} 29... Bb6 {[%clk 0:01:44.3]} 30. d5 {[%clk 0:01:39.3]} 30...
Rfd8 {[%clk 0:01:43]} 31. d6 {[%clk 0:01:37.3]} 31... Rc2 {[%clk 0:01:42]} 32.
Bg3 {[%clk 0:01:18.1]} 32... Rc3 {[%clk 0:01:42.5]} 33. Kh2 {[%clk 0:01:12.8]}
33... Rxb3 {[%clk 0:01:42.9]} 34. Re7 {[%clk 0:01:11.1]} 34... Rd3 {[%clk
0:01:39.2]} 35. Ra2 {[%clk 0:01:03.9]} 35... h5 {[%clk 0:01:38.5]} 36. h4 {[%clk
0:00:59.7]} 36... Rd5 {[%clk 0:01:35.6]} 37. Bf4 {[%clk 0:00:57.7]} 37... Bc5
{[%clk 0:01:32.3]} 38. g3 {[%clk 0:00:57]} 38... f6 {[%clk 0:00:54.5]} 39. Kg2
{[%clk 0:00:42.7]} 39... Kh7 {[%clk 0:00:45.1]} 40. Be3 {[%clk 0:00:35.9]} 40...
Bxe3 {[%clk 0:00:37]} 41. Rxe3 {[%clk 0:00:35.6]} 41... a5 {[%clk 0:00:31.4]}
42. Rea3 {[%clk 0:00:35.3]} 42... R8xd6 {[%clk 0:00:30.9]} 43. Rxa5 {[%clk
0:00:35.4]} 43... Rxa5 {[%clk 0:00:31.8]} 44. Rxa5 {[%clk 0:00:35.4]} 44... Kg6
{[%clk 0:00:32.7]} 45. Rb5 {[%clk 0:00:35.2]} 1/2-1/2

[Event "Late-Titled-Tuesday-Blitz-April-30-2024"]
[Site "Chess.com"]
[Date "2024.04.30"]
[Round "4"]
[White "NovakRatko"]
[Black "AldokhinIvan"]
[Result "0-1"]
[WhiteElo "2389"]
[BlackElo "2662"]
[TimeControl "180+1"]
[EndTime "14:40:01 PDT"]
[Termination "AldokhinIvan won on time"]

1. d4 {[%clk 0:02:58.6]} 1... Nf6 {[%clk 0:03:00.1]} 2. c4 {[%clk 0:02:59.1]}
2... g6 {[%clk 0:03:00.5]} 3. Nc3 {[%clk 0:02:59]} 3... Bg7 {[%clk 0:03:01.1]}
4. e4 {[%clk 0:02:58.1]} 4... O-O {[%clk 0:03:01.5]} 5. f3 {[%clk 0:02:58.6]}
5... c6 {[%clk 0:03:01.3]} 6. Be3 {[%clk 0:02:58.9]} 6... d5 {[%clk 0:03:01.8]}
7. e5 {[%clk 0:02:58.8]} 7... Nfd7 {[%clk 0:03:01.7]} 8. cxd5 {[%clk 0:02:58]}
8... cxd5 {[%clk 0:03:02.6]} 9. Nxd5 {[%clk 0:02:58.6]} 9... Nc6 {[%clk
0:03:03.2]} 10. f4 {[%clk 0:02:50.6]} 10... Nb6 {[%clk 0:02:56.1]} 11. Nc3
{[%clk 0:02:46.6]} 11... Nb4 {[%clk 0:02:53.5]} 12. a3 {[%clk 0:02:39.1]} 12...
N4d5 {[%clk 0:02:52.4]} 13. Bd2 {[%clk 0:02:28.4]} 13... f6 {[%clk 0:02:36.4]}
14. Nxd5 {[%clk 0:02:20.4]} 14... Qxd5 {[%clk 0:02:31.1]} 15. Nf3 {[%clk
0:02:18]} 15... Bg4 {[%clk 0:02:25.2]} 16. Be3 {[%clk 0:01:47.3]} 16... Rad8
{[%clk 0:01:41]} 17. Be2 {[%clk 0:01:27.4]} 17... fxe5 {[%clk 0:01:38.6]} 18.
fxe5 {[%clk 0:01:25]} 18... Qe4 {[%clk 0:00:57.3]} 19. Qd2 {[%clk 0:01:14.8]}
19... Nd5 {[%clk 0:00:49.6]} 20. Bg5 {[%clk 0:00:29]} 20... h6 {[%clk
0:00:36.1]} 21. Bxh6 {[%clk 0:00:20]} 21... Bxh6 {[%clk 0:00:35.4]} 22. Qxh6
{[%clk 0:00:19.4]} 22... Nf4 {[%clk 0:00:35]} 23. O-O {[%clk 0:00:11.1]} 23...
Nxe2+ {[%clk 0:00:34]} 24. Kh1 {[%clk 0:00:11.3]} 24... Rxf3 {[%clk 0:00:32.5]}
25. Rfe1 {[%clk 0:00:03.1]} 25... Rf2 {[%clk 0:00:29.7]} 0-1

[Event "Late-Titled-Tuesday-Blitz-April-30-2024"]
[Site "Chess.com"]
[Date "2024.04.30"]
[Round "4"]
[White "disciplinedbrat"]
[Black "GalaxyRoman"]
[Result "0-1"]
[WhiteElo "2427"]
[BlackElo "2756"]
[TimeControl "180+1"]
[EndTime "14:40:04 PDT"]
[Termination "GalaxyRoman won by resignation"]

1. d4 {[%clk 0:03:00.9]} 1... Nf6 {[%clk 0:02:59.7]} 2. Nf3 {[%clk 0:02:58.9]}
2... e6 {[%clk 0:03:00.2]} 3. Nbd2 {[%clk 0:02:54.1]} 3... d5 {[%clk 0:03:00]}
4. e3 {[%clk 0:02:52.2]} 4... c5 {[%clk 0:02:59.7]} 5. c3 {[%clk 0:02:52]} 5...
Nc6 {[%clk 0:02:59.7]} 6. Bd3 {[%clk 0:02:52.5]} 6... Bd6 {[%clk 0:03:00]} 7.
dxc5 {[%clk 0:02:52.6]} 7... Bxc5 {[%clk 0:03:00.1]} 8. b4 {[%clk 0:02:53.2]}
8... Bd6 {[%clk 0:02:59.5]} 9. Bb2 {[%clk 0:02:52.5]} 9... O-O {[%clk
0:02:59.5]} 10. O-O {[%clk 0:02:52.2]} 10... Ne5 {[%clk 0:02:59]} 11. Nxe5
{[%clk 0:02:46]} 11... Bxe5 {[%clk 0:02:59.9]} 12. Nf3 {[%clk 0:02:46.4]} 12...
Bc7 {[%clk 0:03:00.3]} 13. c4 {[%clk 0:02:34.4]} 13... dxc4 {[%clk 0:03:00.1]}
14. Bxc4 {[%clk 0:02:34.2]} 14... Qe7 {[%clk 0:03:00.5]} 15. Qb3 {[%clk
0:02:18.6]} 15... e5 {[%clk 0:02:58.1]} 16. e4 {[%clk 0:01:53.1]} 16... Nxe4
{[%clk 0:02:43]} 17. Rfe1 {[%clk 0:01:52.9]} 17... Nd6 {[%clk 0:02:41.4]} 18.
Rxe5 {[%clk 0:01:48.3]} 18... Qd8 {[%clk 0:02:17.3]} 19. Rd1 {[%clk 0:01:44.3]}
19... h6 {[%clk 0:02:08]} 20. Rh5 {[%clk 0:01:14]} 20... Bg4 {[%clk 0:02:00.8]}
21. Rxh6 {[%clk 0:01:13.3]} 21... Nxc4 {[%clk 0:01:24.1]} 22. Rxd8 {[%clk
0:01:06.2]} 22... Raxd8 {[%clk 0:01:22.1]} 23. Rh4 {[%clk 0:01:01]} 23... Nxb2
{[%clk 0:01:21.8]} 24. g3 {[%clk 0:00:47.6]} 24... Rd1+ {[%clk 0:01:14.9]} 25.
Kg2 {[%clk 0:00:47.1]} 25... Rd3 {[%clk 0:01:15.1]} 26. Qxb2 {[%clk 0:00:42.4]}
26... Bxf3+ {[%clk 0:01:13.8]} 27. Kh3 {[%clk 0:00:42.7]} 27... Rfd8 {[%clk
0:01:03.2]} 28. Qc2 {[%clk 0:00:39.9]} 28... Be5 {[%clk 0:00:58.6]} 29. Qc5
{[%clk 0:00:33.8]} 29... Bf6 {[%clk 0:00:55.1]} 30. Rf4 {[%clk 0:00:32]} 30...
R3d5 {[%clk 0:00:45.3]} 31. Rxf3 {[%clk 0:00:18.8]} 31... Rxc5 {[%clk
0:00:45.2]} 32. bxc5 {[%clk 0:00:19.7]} 32... Rc8 {[%clk 0:00:45.7]} 33. Rb3
{[%clk 0:00:19.9]} 33... Rxc5 {[%clk 0:00:44.9]} 34. Rxb7 {[%clk 0:00:20.4]}
34... Ra5 {[%clk 0:00:44.4]} 35. f4 {[%clk 0:00:17.7]} 35... Rxa2 {[%clk
0:00:43.5]} 36. Rb8+ {[%clk 0:00:17.4]} 36... Kh7 {[%clk 0:00:43.5]} 37. Rb5
{[%clk 0:00:18.3]} 37... a5 {[%clk 0:00:43.5]} 38. Rh5+ {[%clk 0:00:18.2]} 38...
Kg8 {[%clk 0:00:43.5]} 39. Kg4 {[%clk 0:00:18]} 39... a4 {[%clk 0:00:43.8]} 40.
h4 {[%clk 0:00:17.6]} 40... a3 {[%clk 0:00:44.1]} 41. Ra5 {[%clk 0:00:18.5]}
41... Bb2 {[%clk 0:00:44.1]} 0-1

[Event "Late-Titled-Tuesday-Blitz-April-30-2024"]
[Site "Chess.com"]
[Date "2024.04.30"]
[Round "4"]
[White "traack"]
[Black "dianamirza"]
[Result "1-0"]
[WhiteElo "2435"]
[BlackElo "1989"]
[TimeControl "180+1"]
[EndTime "14:40:05 PDT"]
[Termination "traack won by checkmate"]

1. e4 {[%clk 0:03:00.9]} 1... c5 {[%clk 0:02:53.2]} 2. c3 {[%clk 0:03:00.2]}
2... Nf6 {[%clk 0:02:52.7]} 3. e5 {[%clk 0:03:00]} 3... Nd5 {[%clk 0:02:52.6]}
4. d4 {[%clk 0:02:59.4]} 4... cxd4 {[%clk 0:02:52.9]} 5. Nf3 {[%clk 0:02:52.9]}
5... d6 {[%clk 0:02:50.3]} 6. exd6 {[%clk 0:02:52]} 6... Qxd6 {[%clk 0:02:48.6]}
7. Nxd4 {[%clk 0:02:49.3]} 7... e6 {[%clk 0:02:35.5]} 8. g3 {[%clk 0:02:46]}
8... Nc6 {[%clk 0:02:35.2]} 9. Bg2 {[%clk 0:02:43.9]} 9... Nxd4 {[%clk
0:02:34.7]} 10. Qxd4 {[%clk 0:02:43.4]} 10... Qb6 {[%clk 0:02:29.2]} 11. Qxb6
{[%clk 0:02:31.6]} 11... axb6 {[%clk 0:02:26]} 12. O-O {[%clk 0:02:31.7]} 12...
Bc5 {[%clk 0:02:25.2]} 13. a3 {[%clk 0:02:27.8]} 13... O-O {[%clk 0:02:23.5]}
14. c4 {[%clk 0:02:27.8]} 14... Nf6 {[%clk 0:02:18.9]} 15. Nc3 {[%clk
0:02:28.1]} 15... Ng4 {[%clk 0:02:07.9]} 16. Ne4 {[%clk 0:02:15.4]} 16... f5
{[%clk 0:01:55.3]} 17. Nxc5 {[%clk 0:02:14.1]} 17... bxc5 {[%clk 0:01:56.2]} 18.
Rd1 {[%clk 0:02:11.2]} 18... Rb8 {[%clk 0:01:32.7]} 19. h3 {[%clk 0:02:09.3]}
19... Nf6 {[%clk 0:01:29.1]} 20. Bf4 {[%clk 0:02:09.5]} 20... Ra8 {[%clk
0:01:18.9]} 21. Bd6 {[%clk 0:02:09.9]} 21... Re8 {[%clk 0:01:12.4]} 22. Bxc5
{[%clk 0:02:10.2]} 22... e5 {[%clk 0:01:08.6]} 23. Rd6 {[%clk 0:02:04.4]} 23...
e4 {[%clk 0:01:06.9]} 24. Rad1 {[%clk 0:01:57.7]} 24... Be6 {[%clk 0:01:05.7]}
25. b3 {[%clk 0:01:57.9]} 25... Bf7 {[%clk 0:01:00.8]} 26. f3 {[%clk 0:01:57.7]}
26... e3 {[%clk 0:00:55.1]} 27. Re1 {[%clk 0:01:58.1]} 27... Re5 {[%clk
0:00:42.6]} 28. Bxe3 {[%clk 0:01:42.8]} 28... Rxa3 {[%clk 0:00:39.8]} 29. Rd8+
{[%clk 0:01:38.9]} 29... Be8 {[%clk 0:00:33.4]} 30. f4 {[%clk 0:01:38.1]} 30...
Re6 {[%clk 0:00:26.5]} 31. Bd5 {[%clk 0:01:08.8]} 31... Nxd5 {[%clk 0:00:20.7]}
32. cxd5 {[%clk 0:01:09.7]} 32... Re4 {[%clk 0:00:18.1]} 33. Bf2 {[%clk
0:01:07.2]} 33... Kf7 {[%clk 0:00:13.8]} 34. b4 {[%clk 0:00:58.5]} 34... Rb3
{[%clk 0:00:08.3]} 35. Rxe4 {[%clk 0:00:55.9]} 35... fxe4 {[%clk 0:00:09.2]} 36.
Bc5 {[%clk 0:00:56.2]} 36... Bb5 {[%clk 0:00:07.4]} 37. f5 {[%clk 0:00:44.2]}
37... Rxg3+ {[%clk 0:00:07.5]} 38. Kh2 {[%clk 0:00:43.5]} 38... Rf3 {[%clk
0:00:06.8]} 39. Rf8# {[%clk 0:00:44.1]} 1-0

[Event "Late-Titled-Tuesday-Blitz-April-30-2024"]
[Site "Chess.com"]
[Date "2024.04.30"]
[Round "4"]
[White "Goryachkina"]
[Black "MeisterJabo"]
[Result "1-0"]
[WhiteElo "2692"]
[BlackElo "2462"]
[TimeControl "180+1"]
[EndTime "14:40:06 PDT"]
[Termination "Goryachkina won by resignation"]

1. e4 {[%clk 0:03:00.1]} 1... e5 {[%clk 0:02:57.6]} 2. Nf3 {[%clk 0:02:59.7]}
2... Nf6 {[%clk 0:02:57.5]} 3. d4 {[%clk 0:02:54.8]} 3... Nxe4 {[%clk
0:02:55.9]} 4. Bd3 {[%clk 0:02:54.3]} 4... Nc6 {[%clk 0:02:56.1]} 5. dxe5 {[%clk
0:02:50.3]} 5... Nc5 {[%clk 0:02:48.3]} 6. Bc4 {[%clk 0:02:49.9]} 6... Ne6
{[%clk 0:02:43.7]} 7. O-O {[%clk 0:02:49.3]} 7... d6 {[%clk 0:02:44.3]} 8. Qe2
{[%clk 0:02:39.8]} 8... dxe5 {[%clk 0:02:35.4]} 9. Nxe5 {[%clk 0:02:39.7]} 9...
Nxe5 {[%clk 0:02:34.8]} 10. Qxe5 {[%clk 0:02:39.8]} 10... Bd6 {[%clk 0:02:35]}
11. Qh5 {[%clk 0:02:38]} 11... O-O {[%clk 0:02:30.3]} 12. Nc3 {[%clk 0:02:37.2]}
12... Nc5 {[%clk 0:01:52.8]} 13. Bg5 {[%clk 0:02:35]} 13... Be7 {[%clk
0:01:42.7]} 14. Rad1 {[%clk 0:02:33]} 14... Bd7 {[%clk 0:01:41.5]} 15. Be3
{[%clk 0:02:15.6]} 15... Ne6 {[%clk 0:01:34]} 16. f4 {[%clk 0:01:56.7]} 16... g6
{[%clk 0:01:25.9]} 17. Qf3 {[%clk 0:01:35.9]} 17... Ng7 {[%clk 0:01:08.3]} 18.
Qxb7 {[%clk 0:01:20.5]} 18... Rb8 {[%clk 0:01:03.6]} 19. Qxa7 {[%clk 0:01:17.4]}
19... Rxb2 {[%clk 0:01:02.8]} 20. Nd5 {[%clk 0:01:13.5]} 20... Bd6 {[%clk
0:00:48.7]} 21. Bd4 {[%clk 0:01:01.8]} 21... Rxc2 {[%clk 0:00:48]} 22. Bb3
{[%clk 0:00:58.6]} 22... Re2 {[%clk 0:00:42.3]} 23. Nf6+ {[%clk 0:00:49.4]}
23... Kh8 {[%clk 0:00:42.3]} 24. Qa6 {[%clk 0:00:47.5]} 24... Qe7 {[%clk
0:00:21.7]} 25. Nxd7 {[%clk 0:00:42]} 25... Qe4 {[%clk 0:00:21.6]} 26. Rf2
{[%clk 0:00:29]} 26... Rxf2 {[%clk 0:00:07.3]} 27. Bxf2 {[%clk 0:00:28.2]} 27...
Qxf4 {[%clk 0:00:07.3]} 28. g3 {[%clk 0:00:27.8]} 28... Qg4 {[%clk 0:00:07.4]}
29. Nxf8 {[%clk 0:00:27]} 29... Qxd1+ {[%clk 0:00:06.8]} 30. Bxd1 {[%clk
0:00:27]} 1-0

[Event "Late-Titled-Tuesday-Blitz-April-30-2024"]
[Site "Chess.com"]
[Date "2024.04.30"]
[Round "4"]
[White "1g60-1"]
[Black "Iuckyducky"]
[Result "0-1"]
[WhiteElo "2429"]
[BlackElo "2231"]
[TimeControl "180+1"]
[EndTime "14:40:07 PDT"]
[Termination "Iuckyducky won by resignation"]

1. e4 {[%clk 0:03:00.9]} 1... c5 {[%clk 0:02:34.2]} 2. Nf3 {[%clk 0:02:53.1]}
2... Nc6 {[%clk 0:02:27.9]} 3. d4 {[%clk 0:02:53.2]} 3... cxd4 {[%clk
0:02:27.9]} 4. Nxd4 {[%clk 0:02:54.1]} 4... Nf6 {[%clk 0:02:28.1]} 5. Nc3 {[%clk
0:02:54.7]} 5... e5 {[%clk 0:02:28.7]} 6. Ndb5 {[%clk 0:02:54.8]} 6... d6 {[%clk
0:02:28.8]} 7. Bg5 {[%clk 0:02:54.9]} 7... a6 {[%clk 0:02:29.5]} 8. Bxf6 {[%clk
0:02:55.1]} 8... gxf6 {[%clk 0:02:24.8]} 9. Na3 {[%clk 0:02:54.9]} 9... f5
{[%clk 0:02:07]} 10. Bd3 {[%clk 0:02:51.4]} 10... Bg7 {[%clk 0:01:45.2]} 11. Nd5
{[%clk 0:02:46.6]} 11... O-O {[%clk 0:01:35.5]} 12. O-O {[%clk 0:02:35.3]} 12...
fxe4 {[%clk 0:01:32.1]} 13. Bxe4 {[%clk 0:02:35.1]} 13... f5 {[%clk 0:01:32.7]}
14. Bd3 {[%clk 0:02:30.3]} 14... b5 {[%clk 0:01:19.9]} 15. c3 {[%clk 0:02:27.7]}
15... e4 {[%clk 0:01:01.3]} 16. Be2 {[%clk 0:02:17.1]} 16... f4 {[%clk 0:00:57]}
17. Nxf4 {[%clk 0:02:06.4]} 17... Rxf4 {[%clk 0:00:39.4]} 18. Qd5+ {[%clk
0:02:05.7]} 18... Rf7 {[%clk 0:00:39.8]} 19. Qxc6 {[%clk 0:02:02]} 19... Bb7
{[%clk 0:00:40]} 20. Qxb7 {[%clk 0:01:51.4]} 20... Rxb7 {[%clk 0:00:39.9]} 21.
Rad1 {[%clk 0:01:51.9]} 21... Qf6 {[%clk 0:00:35.3]} 22. Nc2 {[%clk 0:01:50.8]}
22... Kh8 {[%clk 0:00:32.7]} 23. Ne3 {[%clk 0:01:51]} 23... Rg8 {[%clk
0:00:31.2]} 24. g3 {[%clk 0:01:50.7]} 24... b4 {[%clk 0:00:29.6]} 25. c4 {[%clk
0:01:50.5]} 25... Qxb2 {[%clk 0:00:29.2]} 26. Bg4 {[%clk 0:01:49.1]} 26... Qxa2
{[%clk 0:00:22.8]} 27. Rxd6 {[%clk 0:01:49.3]} 27... b3 {[%clk 0:00:22.8]} 28.
Be6 {[%clk 0:01:48.8]} 28... b2 {[%clk 0:00:19.5]} 29. c5 {[%clk 0:01:48.3]}
29... Qa5 {[%clk 0:00:03.3]} 30. Bxg8 {[%clk 0:01:46]} 30... Kxg8 {[%clk
0:00:04.2]} 31. Rb1 {[%clk 0:01:38.9]} 31... Qxc5 {[%clk 0:00:02.6]} 32. Rd5
{[%clk 0:01:26.8]} 32... Qc7 {[%clk 0:00:01.8]} 33. Kg2 {[%clk 0:01:24.5]} 33...
a5 {[%clk 0:00:02.3]} 34. Nf5 {[%clk 0:01:12.3]} 34... a4 {[%clk 0:00:02.7]} 35.
Rd4 {[%clk 0:00:59.7]} 35... a3 {[%clk 0:00:03]} 36. Ra4 {[%clk 0:00:59.8]}
36... Qc3 {[%clk 0:00:02.7]} 37. Nd6 {[%clk 0:00:54.6]} 37... e3 {[%clk
0:00:02.4]} 38. Rf1 {[%clk 0:00:47.2]} 38... Qc6+ {[%clk 0:00:02.2]} 39. Kg1
{[%clk 0:00:45.4]} 39... Qxa4 {[%clk 0:00:02.4]} 40. fxe3 {[%clk 0:00:45.4]}
40... b1=Q {[%clk 0:00:02.3]} 0-1

[Event "Late-Titled-Tuesday-Blitz-April-30-2024"]
[Site "Chess.com"]
[Date "2024.04.30"]
[Round "4"]
[White "Synctel"]
[Black "chess_sharparchitect"]
[Result "1-0"]
[WhiteElo "2027"]
[BlackElo "2256"]
[TimeControl "180+1"]
[EndTime "14:40:11 PDT"]
[Termination "Synctel won by resignation"]

1. d4 {[%clk 0:02:59.6]} 1... Nf6 {[%clk 0:02:59.5]} 2. Nf3 {[%clk 0:02:59.2]}
2... d5 {[%clk 0:02:57.8]} 3. e3 {[%clk 0:02:58.5]} 3... c5 {[%clk 0:02:54.8]}
4. c3 {[%clk 0:02:58.1]} 4... Nc6 {[%clk 0:02:54.5]} 5. dxc5 {[%clk 0:02:58.3]}
5... a5 {[%clk 0:02:51.6]} 6. Bb5 {[%clk 0:02:57.3]} 6... e6 {[%clk 0:02:46.8]}
7. b4 {[%clk 0:02:50.5]} 7... Bd7 {[%clk 0:02:42]} 8. a4 {[%clk 0:02:27.5]} 8...
Qc7 {[%clk 0:02:12.8]} 9. Bb2 {[%clk 0:02:06.1]} 9... Be7 {[%clk 0:02:12.3]} 10.
Nbd2 {[%clk 0:01:54.1]} 10... O-O {[%clk 0:02:08]} 11. Qb3 {[%clk 0:01:40.7]}
11... e5 {[%clk 0:01:44.6]} 12. h3 {[%clk 0:01:23.2]} 12... Rfd8 {[%clk
0:01:40.8]} 13. O-O {[%clk 0:01:21.1]} 13... Be6 {[%clk 0:01:33.5]} 14. Bxc6
{[%clk 0:01:15.8]} 14... bxc6 {[%clk 0:01:32]} 15. Ng5 {[%clk 0:01:08.6]} 15...
Bf5 {[%clk 0:01:28.9]} 16. e4 {[%clk 0:01:06.3]} 16... dxe4 {[%clk 0:01:26.9]}
17. Qxf7+ {[%clk 0:01:02.7]} 17... Kh8 {[%clk 0:01:26.7]} 18. Nc4 {[%clk
0:00:27.1]} 18... Bg6 {[%clk 0:01:22.3]} 19. Qe6 {[%clk 0:00:21.4]} 19... Rf8
{[%clk 0:01:06.9]} 20. Nxe5 {[%clk 0:00:21.2]} 20... Nd5 {[%clk 0:01:00.3]} 21.
Nxg6+ {[%clk 0:00:20.6]} 21... hxg6 {[%clk 0:01:00]} 22. Nf7+ {[%clk 0:00:20.4]}
22... Kh7 {[%clk 0:00:53.7]} 23. c4 {[%clk 0:00:20.3]} 23... Nf4 {[%clk
0:00:49.5]} 24. Qe5 {[%clk 0:00:16.1]} 24... Qxe5 {[%clk 0:00:43.7]} 25. Nxe5
{[%clk 0:00:17]} 25... Bf6 {[%clk 0:00:38.4]} 26. b5 {[%clk 0:00:16.4]} 26...
cxb5 {[%clk 0:00:34.8]} 27. cxb5 {[%clk 0:00:17.3]} 27... Rfe8 {[%clk
0:00:34.5]} 28. Nc4 {[%clk 0:00:17.6]} 28... Nd3 {[%clk 0:00:33.1]} 29. Bxf6
{[%clk 0:00:16.7]} 29... gxf6 {[%clk 0:00:32.8]} 30. c6 {[%clk 0:00:17.3]} 30...
Rab8 {[%clk 0:00:22]} 31. b6 {[%clk 0:00:17.1]} 31... Nb4 {[%clk 0:00:20.5]} 32.
c7 {[%clk 0:00:16.4]} 32... Rb7 {[%clk 0:00:20.1]} 33. Nd6 {[%clk 0:00:16.4]}
33... Rxb6 {[%clk 0:00:20]} 34. Nxe8 {[%clk 0:00:16.7]} 34... Nc2 {[%clk
0:00:19.9]} 35. c8=Q {[%clk 0:00:16.5]} 1-0

[Event "Late-Titled-Tuesday-Blitz-April-30-2024"]
[Site "Chess.com"]
[Date "2024.04.30"]
[Round "4"]
[White "ab-lsv"]
[Black "MKlose11"]
[Result "0-1"]
[WhiteElo "2362"]
[BlackElo "2640"]
[TimeControl "180+1"]
[EndTime "14:40:13 PDT"]
[Termination "MKlose11 won by resignation"]

1. d4 {[%clk 0:02:59.6]} 1... Nf6 {[%clk 0:02:58]} 2. c4 {[%clk 0:02:59.9]} 2...
c5 {[%clk 0:02:57.6]} 3. d5 {[%clk 0:03:00.1]} 3... b5 {[%clk 0:02:57.8]} 4.
cxb5 {[%clk 0:03:01]} 4... a6 {[%clk 0:02:58.3]} 5. bxa6 {[%clk 0:03:01.5]} 5...
Bxa6 {[%clk 0:02:59.2]} 6. Nc3 {[%clk 0:03:01.5]} 6... d6 {[%clk 0:02:59.5]} 7.
e4 {[%clk 0:03:01.7]} 7... Bxf1 {[%clk 0:02:58.9]} 8. Kxf1 {[%clk 0:03:01.9]}
8... Nbd7 {[%clk 0:02:59.8]} 9. Nf3 {[%clk 0:03:01.9]} 9... g6 {[%clk
0:03:00.7]} 10. g3 {[%clk 0:03:02.1]} 10... Bg7 {[%clk 0:02:52.9]} 11. Kg2
{[%clk 0:03:02.3]} 11... O-O {[%clk 0:02:53.8]} 12. a4 {[%clk 0:03:01.5]} 12...
Qb6 {[%clk 0:02:54]} 13. Qc2 {[%clk 0:03:00.4]} 13... Rfb8 {[%clk 0:02:54.1]}
14. Nb5 {[%clk 0:02:56.1]} 14... Ne8 {[%clk 0:02:52.4]} 15. Ra3 {[%clk
0:02:51.4]} 15... Nc7 {[%clk 0:02:52.3]} 16. Nxc7 {[%clk 0:02:47.8]} 16... Qxc7
{[%clk 0:02:53.2]} 17. b3 {[%clk 0:02:47.7]} 17... Qb6 {[%clk 0:02:51.9]} 18.
Nd2 {[%clk 0:02:39]} 18... Qa6 {[%clk 0:02:46.6]} 19. Nc4 {[%clk 0:02:35.5]}
19... Nb6 {[%clk 0:02:46.7]} 20. Nxb6 {[%clk 0:02:35.1]} 20... Rxb6 {[%clk
0:02:41.7]} 21. Bg5 {[%clk 0:02:27.5]} 21... Qb7 {[%clk 0:02:40.5]} 22. Rb1
{[%clk 0:02:24.5]} 22... Rb8 {[%clk 0:02:39.3]} 23. a5 {[%clk 0:02:16.5]} 23...
Ra6 {[%clk 0:02:37.7]} 24. Bd2 {[%clk 0:02:16]} 24... Qb5 {[%clk 0:02:36.5]} 25.
Bc3 {[%clk 0:02:03.7]} 25... Bxc3 {[%clk 0:02:02.3]} 26. Qxc3 {[%clk 0:02:04.6]}
26... Qb4 {[%clk 0:01:28.5]} 27. Qxb4 {[%clk 0:01:44.3]} 27... Rxb4 {[%clk
0:01:29.4]} 28. Kf3 {[%clk 0:01:43.4]} 28... c4 {[%clk 0:01:23.6]} 29. Ke3
{[%clk 0:01:42.8]} 29... cxb3 {[%clk 0:01:17.4]} 30. Rbxb3 {[%clk 0:01:39]}
30... Rxb3+ {[%clk 0:01:17.5]} 31. Rxb3 {[%clk 0:01:39.3]} 31... Rxa5 {[%clk
0:01:18.4]} 32. Rb7 {[%clk 0:01:37.6]} 32... Kf8 {[%clk 0:01:18.4]} 33. h4
{[%clk 0:01:35.2]} 33... f6 {[%clk 0:01:13.9]} 34. Kf4 {[%clk 0:01:32.6]} 34...
Kf7 {[%clk 0:01:11.8]} 35. f3 {[%clk 0:01:32.6]} 35... Ra4 {[%clk 0:01:08.2]}
36. g4 {[%clk 0:01:31.9]} 36... Ra1 {[%clk 0:01:01.4]} 37. Rc7 {[%clk
0:01:27.6]} 37... Rh1 {[%clk 0:00:58.8]} 38. Kg3 {[%clk 0:01:27.5]} 38... Rg1+
{[%clk 0:00:59.2]} 39. Kf4 {[%clk 0:01:27.4]} 39... Ra1 {[%clk 0:01:00.1]} 40.
Rb7 {[%clk 0:01:27.2]} 40... Rg1 {[%clk 0:00:56.3]} 41. Rc7 {[%clk 0:01:26.3]}
41... h5 {[%clk 0:00:54.7]} 42. gxh5 {[%clk 0:01:19.5]} 42... g5+ {[%clk
0:00:52.6]} 43. hxg5 {[%clk 0:01:17.6]} 43... Rxg5 {[%clk 0:00:52.7]} 44. h6
{[%clk 0:01:12.9]} 44... Rh5 {[%clk 0:00:51.8]} 45. h7 {[%clk 0:01:11.2]} 45...
Rxh7 {[%clk 0:00:50.5]} 46. Ke3 {[%clk 0:01:11.1]} 46... Rh1 {[%clk 0:00:47.8]}
47. Kf4 {[%clk 0:01:10.9]} 47... Rh2 {[%clk 0:00:45.9]} 48. Ra7 {[%clk 0:01:10]}
48... Rh4+ {[%clk 0:00:45.2]} 49. Ke3 {[%clk 0:01:09.8]} 49... Rh2 {[%clk
0:00:45.5]} 50. Kf4 {[%clk 0:01:09.8]} 50... Rh5 {[%clk 0:00:43.8]} 51. Rb7
{[%clk 0:01:08.9]} 51... f5 {[%clk 0:00:44.2]} 52. Ra7 {[%clk 0:01:05.4]} 52...
Kf6 {[%clk 0:00:41.4]} 53. Rb7 {[%clk 0:01:04.7]} 53... Rh4+ {[%clk 0:00:33.8]}
54. Ke3 {[%clk 0:01:04.6]} 54... Rh7 {[%clk 0:00:34.7]} 55. Kf4 {[%clk
0:01:03.5]} 55... e5+ {[%clk 0:00:32.4]} 0-1